[Event "DPEM German Cup 2024"]
[Site "Bad Wildungen"]
[Date "2024.08.01"]
[Round "1.1"]
[White "Meyer, Thomas"]
[Black "Schroeder, Torsten"]
[Result "1/2-1/2"]
[Annotator "RC"]
[ECO "A36"]
[WhiteElo "2020"]
[BlackElo "2153"]
[PlyCount "40"]
[EventDate "2024.07.31"]
[EventCountry "GER"]
[SourceTitle "playchess.com"]
[Source "ChessBase"]
[SourceQuality "1"]
[TimeControl "40/5400+30:900+30"]

1. c4 {[%emt 0:00:02]} Nf6 {[%emt 0:00:14]} 2. Nc3 {[%emt 0:00:03]} g6 {[%emt 0:00:56]} 3. e4 {[%emt 0:00:15]} d6 {[%emt 0:00:06]} 4. g3 {[%emt 0:00:37]} Bg7 {[%emt 0:00:13]} 5. Bg2 {[%emt 0:00:08]} O-O {[%emt 0:00:56]} 6. Nge2 {[%emt 0:00:10]} c5 {[%emt 0:00:20]} 7. O-O {[%emt 0:00:12]} Nc6 {[%emt 0:00:03]} 8. d3 {[%emt 0:00:25]} Rb8 {[%emt 0:05:51]} 9. h3 {[%emt 0:00:56]} a6 {[%emt 0:00:41]} 10. a4 {[%emt 0:02:23]} Ne8 {[%emt 0:06:13]} 11. Be3 {[%emt 0:04:27]} Nc7 {[%emt 0:01:27]} 12. Qd2 {[%emt 0:00:51]} Ne6 {[%emt 0:07:38]} 13. f4 {[%emt 0:06:24]} Ned4 {[%emt 0:00:27]} 14. Ra3 {[%emt 0:03:46]} e6 {[%emt 0:07:16]} 15. g4 {[%emt 0:06:03]} b5 {[%emt 0:18:35]} 16. axb5 {[%emt 0:02:50]} axb5 {[%emt 0:01:43]} 17. Nxb5 {[%emt 0:04:43]} Nxb5 {[%emt 0:02:25]} 18. cxb5 {[%emt 0:00:03]} Rxb5 {[%emt 0:03:38]} 19. e5 {[%emt 0:02:50]} Qb6 {[%emt 0:01:19]} 20. Nc3 {[%emt 0:08:32]} Rb4 {[%emt 0:08:35]} 1/2-1/2

[Event "DPEM German Cup 2024"]
[Site "Bad Wildungen"]
[Date "2024.08.01"]
[Round "1.2"]
[White "Herbrig, Alexander"]
[Black "Poetsch, Hagen"]
[Result "0-1"]
[Annotator "RC"]
[ECO "E04"]
[WhiteElo "2279"]
[BlackElo "2456"]
[PlyCount "112"]
[EventDate "2024.07.31"]
[EventCountry "GER"]
[SourceTitle "playchess.com"]
[Source "ChessBase"]
[SourceQuality "1"]
[TimeControl "40/5400+30:900+30"]

1. d4 {[%emt 0:00:04]} Nf6 {[%emt 0:00:10]} 2. c4 {[%emt 0:00:38]} e6 {[%emt 0:00:08]} 3. g3 {[%emt 0:00:37]} d5 {[%emt 0:00:26]} 4. Nf3 {[%emt 0:00:23]} dxc4 {[%emt 0:00:05]} 5. Bg2 {[%emt 0:00:38]} c6 {[%emt 0:00:40]} 6. O-O {[%emt 0:07:37]} b5 {[%emt 0:00:21]} 7. a4 {[%emt 0:03:58]} Bb7 {[%emt 0:00:06]} 8. Ne5 {[%emt 0:00:32]} a6 {[%emt 0:00:08]} 9. b3 {[%emt 0:00:21]} cxb3 {[%emt 0:01:36]} 10. Bb2 {[%emt 0:00:16]} Nbd7 {[%emt 0:01:45]} 11. Qxb3 {[%emt 0:05:08]} Nxe5 {[%emt 0:00:42]} 12. dxe5 {[%emt 0:00:11]} Nd7 {[%emt 0:00:07]} 13. Nc3 {[%emt 0:09:32]} Nc5 {[%emt 0:07:35]} 14. Qc2 {[%emt 0:01:58]} Be7 {[%emt 0:08:02]} 15. Ne4 {[%emt 0:09:46]} Nxe4 {[%emt 0:00:16]} 16. Bxe4 {[%emt 0:00:27]} Qb6 {[%emt 0:13:32]} 17. Rfd1 {[%emt 0:03:44]} b4 {[%emt 0:06:43]} 18. a5 {[%emt 0:10:38]} Qc7 {[%emt 0:09:53]} 19. Rd4 {[%emt 0:17:01]} Rc8 {[%emt 0:12:55]} 20. Rad1 {[%emt 0:04:46]} Qxa5 {[%emt 0:01:17]} 21. Qd3 {[%emt 0:09:31]} Rd8 {[%emt 0:08:29]} 22. Qf3 {[%emt 0:01:28]} O-O {[%emt 0:01:06]} 23. Rd7 {[%emt 0:00:15]} Bc8 {[%emt 0:01:50]} 24. R7d6 {[%emt 0:04:04]} Bxd6 {[%emt 0:05:28]} 25. exd6 {[%emt 0:00:02]} Qc5 {[%emt 0:01:17]} 26. Rc1 {[%emt 0:00:57]} Qg5 {[%emt 0:02:01]} 27. h4 {[%emt 0:01:11]} Qd2 {[%emt 0:00:57]} 28. Rc2 {[%emt 0:02:23]} Qd1+ {[%emt 0:01:22]} 29. Kh2 {[%emt 0:00:02]} f5 {[%emt 0:00:30]} 30. Bd3 {[%emt 0:00:30]} Rxd6 {[%emt 0:00:30]} 31. Rxc6 {[%emt 0:00:30]} Rxc6 {[%emt 0:00:30]} 32. Qxc6 {[%emt 0:00:30]} Qb3 {[%emt 0:00:30]} 33. Be5 {[%emt 0:00:30]} Qd5 {[%emt 0:00:30]} 34. Qc7 {[%emt 0:07:22]} Qd7 {[%emt 0:06:45]} 35. Qc4 {[%emt 0:00:00]} Bb7 {[%emt 0:01:38]} 36. f3 {[%emt 0:00:00]} a5 {[%emt 0:00:54]} 37. Qc5 {[%emt 0:00:00]} Ra8 {[%emt 0:02:41]} 38. Bb5 {[%emt 0:00:00]} Qd8 {[%emt 0:00:27]} 39. Bc4 {[%emt 0:00:00]} Bd5 {[%emt 0:00:49]} 40. Bxd5 {[%emt 0:00:00]} exd5 {[%emt 0:00:06]} 41. Qb5 {[%emt 0:16:43]} Ra7 {[%emt 0:16:49]} 42. Bd4 {[%emt 0:00:00]} Re7 {[%emt 0:00:00]} 43. e3 {[%emt 0:00:00]} h6 {[%emt 0:00:00]} 44. h5 {[%emt 0:00:00]} Kh7 {[%emt 0:00:00]} 45. Kg2 {[%emt 0:00:00]} Rc7 {[%emt 0:00:00]} 46. Qd3 {[%emt 0:00:00]} Qg5 {[%emt 0:00:00]} 47. Be5 {[%emt 0:00:00]} Re7 {[%emt 0:00:00]} 48. Bf4 {[%emt 0:00:00]} Qf6 {[%emt 0:00:00]} 49. Qb5 {[%emt 0:00:00]} Qb2+ {[%emt 0:00:00]} 50. Kh3 {[%emt 0:00:00]} Qb1 {[%emt 0:00:00]} 51. Kh2 {[%emt 0:01:25]} b3 {[%emt 0:00:00]} 52. Qxd5 {[%emt 0:03:17]} Qc2+ {[%emt 0:00:00]} 53. Kh3 {[%emt 0:00:15]} b2 {[%emt 0:00:00]} 54. e4 {[%emt 0:00:16]} b1=Q {[%emt 0:00:00]} 55. Qxf5+ {[%emt 0:00:24]} Kg8 {[%emt 0:00:00]} 56. Qd5+ {[%emt 0:01:05]} Rf7 {[%emt 0:00:00]} 0-1

[Event "DPEM German Cup 2024"]
[Site "Bad Wildungen"]
[Date "2024.08.01"]
[Round "1.3"]
[White "Matthes, Benjamin"]
[Black "Cofmann, Veaceslav"]
[Result "0-1"]
[Annotator "RC"]
[ECO "C13"]
[WhiteElo "1946"]
[BlackElo "2245"]
[PlyCount "52"]
[EventDate "2024.07.31"]
[EventCountry "GER"]
[SourceTitle "playchess.com"]
[Source "ChessBase"]
[SourceQuality "1"]
[TimeControl "40/5400+30:900+30"]

1. e4 {[%emt 0:00:03]} e6 {[%emt 0:00:13]} 2. d4 {[%emt 0:01:08]} d5 {[%emt 0:00:07]} 3. Nc3 {[%emt 0:00:15]} Nf6 {[%emt 0:00:10]} 4. Bg5 {[%emt 0:00:24]} dxe4 {[%emt 0:02:15]} 5. Nxe4 {[%emt 0:00:40]} Nbd7 {[%emt 0:00:26]} 6. Nf3 {[%emt 0:06:07]} h6 {[%emt 0:02:06]} 7. Bxf6 {[%emt 0:10:15]} Nxf6 {[%emt 0:00:09]} 8. Bd3 {[%emt 0:01:01]} Bd6 {[%emt 0:05:17]} 9. c3 {[%emt 0:16:08]} Bd7 {[%emt 0:07:03]} 10. Nxd6+ {[%emt 0:03:31]} cxd6 {[%emt 0:00:08]} 11. O-O {[%emt 0:01:19]} Bc6 {[%emt 0:00:47]} 12. Re1 {[%emt 0:00:38]} O-O {[%emt 0:00:53]} 13. b4 {[%emt 0:02:25]} b5 {[%emt 0:10:17]} 14. a4 {[%emt 0:11:41]} a6 {[%emt 0:00:46]} 15. axb5 {[%emt 0:13:00]} axb5 {[%emt 0:00:13]} 16. Rxa8 {[%emt 0:00:06]} Qxa8 {[%emt 0:00:07]} 17. Qe2 {[%emt 0:05:16]} Nd5 {[%emt 0:02:25]} 18. Qe4 {[%emt 0:01:20]} g6 {[%emt 0:00:32]} 19. Qh4 {[%emt 0:01:31]} Kg7 {[%emt 0:00:25]} 20. Qg3 {[%emt 0:04:49]} Nxc3 {[%emt 0:01:20]} 21. Bxg6 {[%emt 0:13:08]} fxg6 {[%emt 0:00:43]} 22. Rxe6 {[%emt 0:00:05]} Be4 {[%emt 0:01:39]} 23. Kf1 {[%emt 0:02:22]} Bd3+ {[%emt 0:00:33]} 24. Ke1 {[%emt 0:02:33]} Qa1+ {[%emt 0:00:06]} 25. Kd2 {[%emt 0:00:04]} Qd1+ {[%emt 0:00:04]} 26. Kxc3 {[%emt 0:00:05]} Qc2# {[%emt 0:00:03]} 0-1

[Event "DPEM German Cup 2024"]
[Site "Bad Wildungen"]
[Date "2024.08.01"]
[Round "1.4"]
[White "Lochte, Thomas"]
[Black "Matthaei, Jakob"]
[Result "1/2-1/2"]
[Annotator "RC"]
[ECO "C44"]
[WhiteElo "1983"]
[BlackElo "2055"]
[PlyCount "120"]
[EventDate "2024.07.31"]
[EventCountry "GER"]
[SourceTitle "playchess.com"]
[Source "ChessBase"]
[SourceQuality "1"]
[TimeControl "40/5400+30:900+30"]

1. e4 {[%emt 0:00:03]} e5 {[%emt 0:00:03]} 2. d4 {[%emt 0:00:14]} exd4 {[%emt 0:00:04]} 3. c3 {[%emt 0:00:01]} dxc3 {[%emt 0:00:11]} 4. Bc4 {[%emt 0:00:06]} d6 {[%emt 0:01:30]} 5. Nxc3 {[%emt 0:00:28]} Nc6 {[%emt 0:01:45]} 6. Nf3 {[%emt 0:00:32]} Nf6 {[%emt 0:01:41]} 7. Qb3 {[%emt 0:11:48]} Qd7 {[%emt 0:01:19]} 8. Ng5 {[%emt 0:04:44]} Ne5 {[%emt 0:00:36]} 9. Be2 {[%emt 0:05:12]} h6 {[%emt 0:03:55]} 10. f4 {[%emt 0:01:49]} Nc6 {[%emt 0:05:21]} 11. Nf3 {[%emt 0:05:19]} Be7 {[%emt 0:02:45]} 12. e5 {[%emt 0:00:31]} dxe5 {[%emt 0:02:42]} 13. Nxe5 {[%emt 0:02:31]} Nxe5 {[%emt 0:02:19]} 14. fxe5 {[%emt 0:00:03]} Ng4 {[%emt 0:00:33]} 15. e6 {[%emt 0:09:34]} Qxe6 {[%emt 0:03:48]} 16. Nd5 {[%emt 0:03:33]} Bd6 {[%emt 0:07:44]} 17. O-O {[%emt 0:06:04]} O-O {[%emt 0:11:00]} 18. Bxg4 {[%emt 0:07:38]} Qxg4 {[%emt 0:00:05]} 19. Bf4 {[%emt 0:03:33]} Be6 {[%emt 0:03:18]} 20. h3 {[%emt 0:02:53]} Qh4 {[%emt 0:03:15]} 21. Bxd6 {[%emt 0:07:19]} Qd4+ {[%emt 0:00:58]} 22. Rf2 {[%emt 0:02:49]} Bxd5 {[%emt 0:02:06]} 23. Qd1 {[%emt 0:03:37]} Qxd1+ {[%emt 0:01:15]} 24. Rxd1 {[%emt 0:00:04]} cxd6 {[%emt 0:00:25]} 25. Rxd5 {[%emt 0:00:03]} Rfd8 {[%emt 0:00:19]} 26. Rfd2 {[%emt 0:00:55]} Rac8 {[%emt 0:00:18]} 27. Rxd6 {[%emt 0:00:35]} Rxd6 {[%emt 0:00:13]} 28. Rxd6 {[%emt 0:00:02]} Rc7 {[%emt 0:02:26]} 29. Rd8+ {[%emt 0:00:14]} Kh7 {[%emt 0:00:01]} 30. Ra8 {[%emt 0:02:13]} a6 {[%emt 0:01:53]} 31. Rb8 {[%emt 0:00:19]} Kg6 {[%emt 0:00:30]} 32. b4 {[%emt 0:00:24]} Kf6 {[%emt 0:01:45]} 33. Kf2 {[%emt 0:01:38]} Ke6 {[%emt 0:04:35]} 34. Ke3 {[%emt 0:00:24]} Kd5 {[%emt 0:01:11]} 35. Kd3 {[%emt 0:00:07]} Kc6 {[%emt 0:02:41]} 36. a4 {[%emt 0:00:42]} Rd7+ {[%emt 0:07:01]} 37. Kc3 {[%emt 0:00:11]} Re7 {[%emt 0:00:32]} 38. Kd3 {[%emt 0:00:28]} h5 {[%emt 0:03:31]} 39. Rc8+ {[%emt 0:02:11]} Kd6 {[%emt 0:01:33]} 40. Rb8 {[%emt 0:00:55]} f5 {[%emt 0:07:04]} 41. Rh8 {[%emt 0:15:42]} Ke5 {[%emt 0:28:56]} 42. Rxh5 {[%emt 0:00:45]} Kf4 {[%emt 0:00:46]} 43. Kd4 {[%emt 0:03:23]} g6 {[%emt 0:00:00]} 44. Rh6 {[%emt 0:00:00]} Rd7+ {[%emt 0:00:00]} 45. Kc5 {[%emt 0:00:00]} Rg7 {[%emt 0:00:00]} 46. h4 {[%emt 0:00:00]} Kg4 {[%emt 0:00:00]} 47. Kd6 {[%emt 0:00:00]} g5 {[%emt 0:00:07]} 48. hxg5 {[%emt 0:02:42]} Kxg5 {[%emt 0:00:43]} 49. Re6 {[%emt 0:03:46]} Kf4 {[%emt 0:00:28]} 50. Re2 {[%emt 0:00:46]} Kg3 {[%emt 0:00:55]} 51. b5 {[%emt 0:01:47]} axb5 {[%emt 0:01:06]} 52. axb5 {[%emt 0:00:02]} b6 {[%emt 0:00:53]} 53. Rc2 {[%emt 0:01:24]} f4 {[%emt 0:00:30]} 54. Kc6 {[%emt 0:03:36]} Rg6+ {[%emt 0:00:14]} 55. Kc7 {[%emt 0:00:10]} Kh2 {[%emt 0:01:54]} 56. Rc4 {[%emt 0:00:43]} Rg4 {[%emt 0:00:56]} 57. Kxb6 {[%emt 0:00:19]} Kxg2 {[%emt 0:00:08]} 58. Ka6 {[%emt 0:00:51]} Rg6+ {[%emt 0:00:51]} 59. b6 {[%emt 0:00:20]} f3 {[%emt 0:00:16]} 60. Ka7 {[%emt 0:00:45]} Rxb6 {[%emt 0:01:11]} 1/2-1/2

[Event "DPEM German Cup 2024"]
[Site "Bad Wildungen"]
[Date "2024.08.01"]
[Round "1.5"]
[White "Bolk, Matthias"]
[Black "Junker, Reiner"]
[Result "1/2-1/2"]
[Annotator "RC"]
[ECO "A00"]
[WhiteElo "2034"]
[BlackElo "2225"]
[PlyCount "47"]
[EventDate "2024.07.31"]
[EventCountry "GER"]
[SourceTitle "playchess.com"]
[Source "ChessBase"]
[SourceQuality "1"]
[TimeControl "40/5400+30:900+30"]

1. b4 {[%emt 0:00:03]} e5 {[%emt 0:00:43]} 2. a3 {[%emt 0:00:03]} d5 {[%emt 0:01:48]} 3. Bb2 {[%emt 0:00:09]} Bd6 {[%emt 0:00:44]} 4. e3 {[%emt 0:00:08]} Nf6 {[%emt 0:03:48]} 5. Nf3 {[%emt 0:00:17]} Nbd7 {[%emt 0:01:35]} 6. c4 {[%emt 0:00:08]} c6 {[%emt 0:01:46]} 7. cxd5 {[%emt 0:00:33]} cxd5 {[%emt 0:00:45]} 8. Be2 {[%emt 0:00:29]} O-O {[%emt 0:01:33]} 9. O-O {[%emt 0:00:03]} Re8 {[%emt 0:01:27]} 10. Nc3 {[%emt 0:00:48]} b6 {[%emt 0:03:26]} 11. Rc1 {[%emt 0:11:30]} Bb7 {[%emt 0:01:04]} 12. Nb5 {[%emt 0:11:19]} Bb8 {[%emt 0:02:55]} 13. Qc2 {[%emt 0:02:25]} Re6 {[%emt 0:01:53]} 14. d4 {[%emt 0:17:08]} e4 {[%emt 0:05:39]} 15. Ne5 {[%emt 0:03:23]} Nxe5 {[%emt 0:01:42]} 16. dxe5 {[%emt 0:00:09]} Bxe5 {[%emt 0:00:27]} 17. Bxe5 {[%emt 0:00:19]} Rxe5 {[%emt 0:00:17]} 18. Qc7 {[%emt 0:00:14]} Qxc7 {[%emt 0:30:56]} 19. Rxc7 {[%emt 0:05:04]} Ba6 {[%emt 0:00:46]} 20. Rfc1 {[%emt 0:02:14]} Ne8 {[%emt 0:09:49]} 21. Rd7 {[%emt 0:04:01]} Nf6 {[%emt 0:06:46]} 22. Rdc7 {[%emt 0:00:39]} Ne8 {[%emt 0:00:23]} 23. Rd7 {[%emt 0:02:25]} Nf6 {[%emt 0:00:21]} 24. Rdc7 {[%emt 0:00:31]} 1/2-1/2

[Event "DPEM German Cup 2024"]
[Site "Bad Wildungen"]
[Date "2024.08.01"]
[Round "1.6"]
[White "Namyslo, Holger"]
[Black "Windmueller, Simon"]
[Result "1/2-1/2"]
[Annotator "RC"]
[ECO "B99"]
[WhiteElo "2131"]
[BlackElo "1941"]
[PlyCount "40"]
[EventDate "2024.07.31"]
[EventCountry "GER"]
[SourceTitle "playchess.com"]
[Source "ChessBase"]
[SourceQuality "1"]
[TimeControl "40/5400+30:900+30"]

1. e4 {[%emt 0:00:04]} c5 {[%emt 0:00:14]} 2. Nf3 {[%emt 0:00:04]} d6 {[%emt 0:00:12]} 3. d4 {[%emt 0:00:05]} cxd4 {[%emt 0:00:07]} 4. Nxd4 {[%emt 0:00:03]} Nf6 {[%emt 0:00:11]} 5. Nc3 {[%emt 0:00:04]} a6 {[%emt 0:00:19]} 6. Bg5 {[%emt 0:00:14]} e6 {[%emt 0:00:12]} 7. f4 {[%emt 0:00:07]} Be7 {[%emt 0:00:08]} 8. Qf3 {[%emt 0:00:17]} Qc7 {[%emt 0:00:08]} 9. O-O-O {[%emt 0:02:04]} Nbd7 {[%emt 0:00:09]} 10. Bd3 {[%emt 0:00:12]} b5 {[%emt 0:00:08]} 11. Rhe1 {[%emt 0:00:36]} Bb7 {[%emt 0:00:35]} 12. Qg3 {[%emt 0:00:15]} b4 {[%emt 0:00:50]} 13. Nd5 {[%emt 0:00:20]} exd5 {[%emt 0:00:09]} 14. exd5 {[%emt 0:00:27]} Kd8 {[%emt 0:01:04]} 15. Nc6+ {[%emt 0:07:32]} Bxc6 {[%emt 0:00:08]} 16. dxc6 {[%emt 0:00:03]} Qxc6 {[%emt 0:01:11]} 17. Bxf6 {[%emt 0:09:10]} Nxf6 {[%emt 0:00:09]} 18. Qxg7 {[%emt 0:00:14]} Re8 {[%emt 0:00:05]} 19. Qxf7 {[%emt 0:03:55]} Ra7 {[%emt 0:00:05]} 20. Bf5 {[%emt 0:03:40]} Qc5 {[%emt 0:08:46]} 1/2-1/2

[Event "DPEM German Cup 2024"]
[Site "Bad Wildungen"]
[Date "2024.08.01"]
[Round "1.7"]
[White "Skabs, Denis"]
[Black "Wickenfeld, Stefan"]
[Result "1/2-1/2"]
[Annotator "RC"]
[ECO "B02"]
[WhiteElo "2096"]
[BlackElo "2198"]
[PlyCount "69"]
[EventDate "2024.07.31"]
[EventCountry "GER"]
[SourceTitle "playchess.com"]
[Source "ChessBase"]
[SourceQuality "1"]
[TimeControl "40/5400+30:900+30"]

1. e4 {[%emt 0:00:04]} d5 {[%emt 0:00:10]} 2. exd5 {[%emt 0:00:23]} Nf6 {[%emt 0:00:07]} 3. Nc3 {[%emt 0:00:43]} Nxd5 {[%emt 0:00:07]} 4. Bc4 {[%emt 0:01:44]} Nb6 {[%emt 0:00:07]} 5. Be2 {[%emt 0:00:58]} c5 {[%emt 0:00:35]} 6. Nf3 {[%emt 0:00:56]} Nc6 {[%emt 0:00:08]} 7. O-O {[%emt 0:04:36]} g6 {[%emt 0:01:35]} 8. Re1 {[%emt 0:02:02]} Bg7 {[%emt 0:01:00]} 9. Bb5 {[%emt 0:11:45]} O-O {[%emt 0:04:02]} 10. Bxc6 {[%emt 0:01:11]} bxc6 {[%emt 0:00:07]} 11. Qe2 {[%emt 0:01:04]} Re8 {[%emt 0:02:28]} 12. Ne5 {[%emt 0:06:12]} Bb7 {[%emt 0:04:29]} 13. d3 {[%emt 0:06:44]} Qd4 {[%emt 0:09:47]} 14. Bd2 {[%emt 0:18:02]} Bxe5 {[%emt 0:20:10]} 15. Qxe5 {[%emt 0:00:37]} Qxe5 {[%emt 0:00:06]} 16. Rxe5 {[%emt 0:00:05]} c4 {[%emt 0:00:08]} 17. d4 {[%emt 0:03:27]} Rad8 {[%emt 0:01:20]} 18. Ra5 {[%emt 0:02:24]} Rxd4 {[%emt 0:01:59]} 19. Be3 {[%emt 0:00:43]} Rd7 {[%emt 0:00:09]} 20. Rxa7 {[%emt 0:00:22]} Nd5 {[%emt 0:00:10]} 21. Na4 {[%emt 0:07:54]} Nxe3 {[%emt 0:05:46]} 22. fxe3 {[%emt 0:00:25]} Bc8 {[%emt 0:00:47]} 23. Rxd7 {[%emt 0:00:13]} Bxd7 {[%emt 0:00:06]} 24. Nc5 {[%emt 0:00:05]} Be6 {[%emt 0:03:21]} 25. a4 {[%emt 0:04:46]} Ra8 {[%emt 0:01:39]} 26. a5 {[%emt 0:00:23]} Bc8 {[%emt 0:05:15]} 27. a6 {[%emt 0:03:17]} Kf8 {[%emt 0:04:02]} 28. Kf2 {[%emt 0:12:35]} e5 {[%emt 0:09:47]} 29. Ra5 {[%emt 0:00:34]} Ke7 {[%emt 0:00:56]} 30. Ke2 {[%emt 0:00:43]} Kd6 {[%emt 0:06:36]} 31. Kd2 {[%emt 0:00:54]} Kc7 {[%emt 0:00:41]} 32. Kc3 {[%emt 0:00:34]} Kb6 {[%emt 0:01:22]} 33. Kb4 {[%emt 0:00:26]} Bxa6 {[%emt 0:01:47]} 34. Nxa6 {[%emt 0:02:52]} Rxa6 {[%emt 0:00:07]} 35. Rxe5 {[%emt 0:00:30]} 1/2-1/2

[Event "DPEM German Cup 2024"]
[Site "Bad Wildungen"]
[Date "2024.08.01"]
[Round "1.8"]
[White "Colpe, Malte"]
[Black "Malek, Daniel"]
[Result "1/2-1/2"]
[Annotator "RC"]
[ECO "D02"]
[WhiteElo "2377"]
[BlackElo "2265"]
[PlyCount "61"]
[EventDate "2024.07.31"]
[EventCountry "GER"]
[SourceTitle "playchess.com"]
[Source "ChessBase"]
[SourceQuality "1"]
[TimeControl "40/5400+30:900+30"]

1. d4 {[%emt 0:00:04]} d5 {[%emt 0:00:12]} 2. Nf3 {[%emt 0:00:54]} Nf6 {[%emt 0:00:06]} 3. c3 {[%emt 0:00:39]} e6 {[%emt 0:02:13]} 4. Bf4 {[%emt 0:00:16]} c5 {[%emt 0:00:07]} 5. e3 {[%emt 0:00:27]} Nc6 {[%emt 0:00:05]} 6. Nbd2 {[%emt 0:00:47]} Bd6 {[%emt 0:01:16]} 7. Bg3 {[%emt 0:00:34]} O-O {[%emt 0:00:06]} 8. Bd3 {[%emt 0:00:23]} b6 {[%emt 0:00:23]} 9. e4 {[%emt 0:01:44]} Be7 {[%emt 0:03:22]} 10. e5 {[%emt 0:01:10]} Nh5 {[%emt 0:01:49]} 11. Qe2 {[%emt 0:11:25]} g6 {[%emt 0:03:18]} 12. Qe3 {[%emt 0:10:39]} a5 {[%emt 0:13:15]} 13. h4 {[%emt 0:15:26]} Ba6 {[%emt 0:07:35]} 14. Bxa6 {[%emt 0:02:32]} Rxa6 {[%emt 0:00:06]} 15. a3 {[%emt 0:04:13]} Ra7 {[%emt 0:09:29]} 16. Bh2 {[%emt 0:03:12]} f5 {[%emt 0:05:36]} 17. exf6 {[%emt 0:00:47]} Rxf6 {[%emt 0:00:33]} 18. Ne5 {[%emt 0:04:56]} Nxe5 {[%emt 0:07:00]} 19. Bxe5 {[%emt 0:00:13]} Rf7 {[%emt 0:00:12]} 20. Nf3 {[%emt 0:03:05]} Ng7 {[%emt 0:08:02]} 21. Bxg7 {[%emt 0:05:19]} Kxg7 {[%emt 0:06:41]} 22. Ne5 {[%emt 0:03:00]} Bxh4 {[%emt 0:02:14]} 23. g3 {[%emt 0:05:33]} Bg5 {[%emt 0:01:16]} 24. f4 {[%emt 0:00:06]} Bf6 {[%emt 0:00:13]} 25. Nxf7 {[%emt 0:00:55]} Rxf7 {[%emt 0:00:07]} 26. O-O-O {[%emt 0:07:03]} Qd6 {[%emt 0:03:14]} 27. Rhf1 {[%emt 0:07:08]} Kg8 {[%emt 0:04:24]} 28. g4 {[%emt 0:01:26]} Re7 {[%emt 0:05:22]} 29. Qf3 {[%emt 0:01:48]} cxd4 {[%emt 0:04:29]} 30. cxd4 {[%emt 0:00:07]} b5 {[%emt 0:00:05]} 31. f5 {[%emt 0:03:15]} 1/2-1/2

[Event "DPEM German Cup 2024"]
[Site "Bad Wildungen"]
[Date "2024.08.01"]
[Round "2.1"]
[White "Poetsch, Hagen"]
[Black "Bolk, Matthias"]
[Result "1-0"]
[Annotator "RC"]
[ECO "B75"]
[WhiteElo "2456"]
[BlackElo "2034"]
[PlyCount "73"]
[EventDate "2024.07.31"]
[EventCountry "GER"]
[SourceTitle "playchess.com"]
[Source "ChessBase"]
[SourceQuality "1"]
[TimeControl "40/5400+30:900+30"]

1. e4 {[%emt 0:00:03]} c5 {[%emt 0:00:38]} 2. Ne2 {[%emt 0:00:11]} Nf6 {[%emt 0:01:40]} 3. Nbc3 {[%emt 0:00:06]} d6 {[%emt 0:00:06]} 4. d4 {[%emt 0:00:20]} cxd4 {[%emt 0:00:08]} 5. Nxd4 {[%emt 0:00:05]} g6 {[%emt 0:00:08]} 6. Be3 {[%emt 0:00:26]} Bg7 {[%emt 0:00:09]} 7. f3 {[%emt 0:01:27]} Nc6 {[%emt 0:00:03]} 8. Qd2 {[%emt 0:00:05]} h5 {[%emt 0:01:40]} 9. O-O-O {[%emt 0:00:09]} Bd7 {[%emt 0:00:06]} 10. Kb1 {[%emt 0:00:23]} a6 {[%emt 0:00:19]} 11. Nb3 {[%emt 0:04:11]} b5 {[%emt 0:04:47]} 12. Nd5 {[%emt 0:01:16]} Nxd5 {[%emt 0:01:03]} 13. exd5 {[%emt 0:00:07]} Ne5 {[%emt 0:00:20]} 14. Bd4 {[%emt 0:02:26]} O-O {[%emt 0:05:32]} 15. f4 {[%emt 0:17:05]} Ng4 {[%emt 0:00:37]} 16. h3 {[%emt 0:03:27]} Nf6 {[%emt 0:03:23]} 17. g4 {[%emt 0:02:12]} h4 {[%emt 0:12:09]} 18. Qf2 {[%emt 0:04:23]} Qc7 {[%emt 0:04:51]} 19. Qxh4 {[%emt 0:00:59]} a5 {[%emt 0:00:13]} 20. f5 {[%emt 0:05:26]} a4 {[%emt 0:03:47]} 21. Nc1 {[%emt 0:00:45]} Rfc8 {[%emt 0:36:18]} 22. Bd3 {[%emt 0:00:44]} Nxd5 {[%emt 0:05:03]} 23. fxg6 {[%emt 0:03:06]} f6 {[%emt 0:00:22]} 24. g5 {[%emt 0:08:35]} a3 {[%emt 0:02:30]} 25. gxf6 {[%emt 0:17:40]} exf6 {[%emt 0:00:36]} 26. Rhf1 {[%emt 0:01:50]} Be6 {[%emt 0:08:12]} 27. Rde1 {[%emt 0:00:45]} axb2 {[%emt 0:00:47]} 28. Rxe6 {[%emt 0:09:18]} bxc1=Q+ {[%emt 0:01:03]} 29. Kxc1 {[%emt 0:00:12]} Rxa2 {[%emt 0:00:32]} 30. Qh7+ {[%emt 0:02:56]} Kf8 {[%emt 0:00:02]} 31. Rf2 {[%emt 0:01:51]} Nf4 {[%emt 0:03:19]} 32. Rxf4 {[%emt 0:02:20]} Rxc2+ {[%emt 0:00:10]} 33. Kd1 {[%emt 0:00:19]} Rc1+ {[%emt 0:05:06]} 34. Ke2 {[%emt 0:12:22]} Re8 {[%emt 0:01:18]} 35. Rxe8+ {[%emt 0:00:00]} Kxe8 {[%emt 0:00:02]} 36. Qg8+ {[%emt 0:00:00]} Bf8 {[%emt 0:00:08]} 37. Bxb5+ {[%emt 0:00:00]} 1-0